fUST/lending_fUST_20250814
["ID","MTS","AMOUNT","RATE_DAILY","PERIOD"]
[379134335,1755154232260,-151.0,0.00018174,2]
[379134336,1755154232271,-300.0,0.00018174,2]
[379134337,1755154232280,-151.0,0.00018174,2]
[379134338,1755154232289,-151.0,0.00018174,2]
[379134339,1755154232299,-151.0,0.00018174,2]
[379134340,1755154232309,-151.0,0.00018174,2]
[379134341,1755154232318,-151.0,0.00018174,2]
[379134342,1755154232327,-151.0,0.00018174,2]
[379134343,1755154232336,-151.0,0.00018174,2]
[379134344,1755154232345,-151.0,0.00018174,2]
[379134345,1755154232355,-151.0,0.00018174,2]
[379134346,1755154232365,-151.0,0.00018174,2]
[379134347,1755154232374,-151.0,0.00018174,2]
[379134348,1755154232383,-284.47548457,0.00018174,2]
[379134349,1755154232393,-151.0,0.00018174,2]
[379134350,1755154232402,-151.0,0.00018174,2]
[379134351,1755154232412,-229.54265378,0.00018174,2]
[379134352,1755154232421,-1342.28239322,0.00018174,2]
[379134353,1755154232430,-151.0,0.00018174,2]
[379134354,1755154232440,-151.0,0.00018174,2]
[379134355,1755154232450,-151.0,0.00018174,2]
[379134356,1755154232459,-151.0,0.00018174,2]
[379134357,1755154232469,-151.0,0.00018174,2]
[379134358,1755154232478,-151.0,0.00018174,2]
[379134359,1755154232489,-500.0,0.00018176,2]
[379134360,1755154232498,-460.0,0.00018178,2]
[379134361,1755154232507,-460.0,0.00018178,2]
[379134362,1755154232518,-460.0,0.00018178,2]
[379134363,1755154232527,-460.0,0.00018178,2]
[379134364,1755154232536,-460.0,0.00018178,2]
[379134365,1755154232545,-319.70219415,0.00018178,2]
[379134385,1755154236361,6552.43464522,0.00018083,2]
[379134386,1755154236389,3447.56535478,0.00018083,2]
[379134387,1755154237884,-151.0,0.00018174,2]
[379134388,1755154237895,-151.0,0.00018174,2]
[379134389,1755154237904,-151.0,0.00018174,2]
[379134390,1755154237915,-140.29780585,0.00018178,2]
[379134391,1755154237924,-460.23599353,0.00018178,2]
[379134392,1755154237934,-460.0,0.00018178,2]
[379134393,1755154237943,-460.0,0.00018178,2]
[379134394,1755154237952,-460.0,0.00018178,2]
[379134395,1755154237962,-460.0,0.00018178,2]
[379134396,1755154237971,-460.0,0.00018178,2]
[379134397,1755154237980,-460.0,0.00018178,2]
[379134398,1755154237991,-460.0,0.00018178,2]
[379134399,1755154238000,-460.0,0.00018178,2]
[379134400,1755154238009,-460.0,0.00018178,2]
[379134401,1755154238019,-460.0,0.00018178,2]
[379134402,1755154238028,-460.0,0.00018178,2]
[379134403,1755154238038,-460.0,0.00018178,2]
[379134404,1755154238047,-460.0,0.00018178,2]
[379134405,1755154238057,-460.0,0.00018178,2]
[379134406,1755154238066,-460.0,0.00018178,2]
[379134407,1755154238076,-460.0,0.00018178,2]
[379134408,1755154238085,-460.0,0.00018178,2]
[379134409,1755154238095,-460.0,0.00018178,2]
[379134410,1755154238104,-460.0,0.00018178,2]
[379134411,1755154238114,-460.0,0.00018178,2]
[379134412,1755154238124,-460.0,0.00018178,2]
[379134413,1755154238134,-460.0,0.00018178,2]
[379134414,1755154238143,-460.0,0.00018178,2]
[379134415,1755154238153,-460.0,0.00018178,2]
[379134416,1755154238163,-460.0,0.00018178,2]
[379134417,1755154238172,-460.0,0.00018178,2]
[379134418,1755154238182,-460.0,0.00018178,2]
[379134419,1755154238191,-489.86645983,0.00018178,2]
[379134420,1755154238201,-460.0,0.00018178,2]
[379134421,1755154238210,-502.26,0.00018178,2]
[379134422,1755154238223,-519.45,0.00018178,2]
[379134423,1755154238232,-460.0,0.00018178,2]
[379134424,1755154238242,-460.0,0.00018178,2]
[379134425,1755154238252,-554.16,0.00018178,2]
[379134426,1755154238261,-460.0,0.00018178,2]
[379134427,1755154238272,-586.33,0.00018178,2]
[379134428,1755154238281,-460.0,0.00018178,2]
[379134429,1755154238291,-460.0,0.00018178,2]
[379134430,1755154238300,-542.49,0.00018178,2]
[379134431,1755154238310,-460.0,0.00018178,2]
[379134432,1755154238319,-460.0,0.00018178,2]
[379134433,1755154238328,-377.91891979,0.00018178,2]
[379134434,1755154238369,-82.08108021,0.00018178,2]
[379134435,1755154238379,-460.0,0.00018178,2]
[379134436,1755154238389,-273.90278933,0.00018178,2]
[379134437,1755154238398,-460.0,0.00018178,2]
[379134438,1755154238408,-460.0,0.00018178,2]
[379134439,1755154238418,-460.0,0.00018178,2]
[379134440,1755154238428,-460.0,0.00018178,2]
[379134441,1755154238437,-460.0,0.00018178,2]
[379134442,1755154238447,-460.0,0.00018181,2]
[379134443,1755154238457,-697.23,0.00018181,2]
[379134444,1755154238466,-966.38,0.00018181,2]
[379134445,1755154238476,-611.61,0.00018181,2]
[379134446,1755154238486,-2512.77,0.00018181,2]
[379134447,1755154238495,-4872.16,0.00018181,2]
[379134448,1755154238504,-460.0,0.00018181,2]
[379134449,1755154238514,-770.29,0.00018181,2]
[379134450,1755154238523,-460.0,0.00018182,2]
[379134451,1755154238532,-460.0,0.00018182,2]
[379134452,1755154238541,-460.0,0.00018182,2]
[379134453,1755154238551,-553.12,0.00018182,2]
[379134454,1755154238560,-479.68,0.00018182,2]
[379134455,1755154238569,-2996.79,0.00018182,2]
[379134456,1755154238579,-1004.08,0.00018182,2]
[379134457,1755154238588,-1063.5,0.00018182,2]
[379134458,1755154238598,-3975.35,0.00018182,2]
[379134459,1755154238607,-460.0,0.00018182,2]
[379134460,1755154238617,-460.0,0.00018182,2]
[379134461,1755154238627,-460.0,0.00018182,2]
[379134462,1755154238636,-1979.56,0.00018182,2]
[379134463,1755154238646,-3282.99,0.00018182,2]
[379134464,1755154238655,-460.0,0.00018182,2]
[379134465,1755154238665,-460.0,0.00018182,2]
[379134466,1755154238675,-745.41,0.00018182,2]
[379134467,1755154238684,-513.78,0.00018182,2]
[379134468,1755154238694,-460.0,0.00018182,2]
[379134469,1755154238703,-2910.96,0.00018182,2]
[379134470,1755154238712,-557.11,0.00018182,2]
[379134471,1755154238722,-460.0,0.00018182,2]
[379134472,1755154238731,-460.0,0.00018182,2]
[379134473,1755154238741,-1131.14,0.00018182,2]
[379134474,1755154238755,-460.0,0.00018182,2]
[379134475,1755154238764,-753.55,0.00018182,2]
[379134476,1755154238775,-152.40134819,0.00018182,2]
[379134477,1755154238784,-156.98781249,0.00018182,2]
[379134478,1755154238798,-460.0,0.00018183,2]
[379134479,1755154238808,-460.0,0.00018183,2]
[379134480,1755154238818,-460.0,0.00018183,2]
[379134481,1755154238828,-460.0,0.00018183,2]
[379134482,1755154238841,-460.0,0.00018183,2]
[379134483,1755154239065,-460.0,0.00018183,2]
[379134484,1755154239075,-460.0,0.00018183,2]
[379134485,1755154239086,-460.0,0.00018183,2]
[379134486,1755154239096,-704.83,0.00018183,2]
[379134487,1755154239106,-391.83370123,0.00018183,2]
[379134488,1755154239117,-460.0,0.00018183,2]
[379134489,1755154239127,-460.0,0.00018183,2]
[379134490,1755154239136,-464.81103394,0.00018183,2]
[379134491,1755154239146,-460.0,0.00018183,2]
[379134492,1755154239156,-460.0,0.00018183,2]
[379134493,1755154239165,-463.59382057,0.00018183,2]
[379134494,1755154239175,-460.0,0.00018183,2]
[379134495,1755154239184,-1312.65,0.00018183,2]
[379134496,1755154239194,-2404.29,0.00018183,2]
[379134497,1755154239203,-1125.78,0.00018183,2]
[379134498,1755154239212,-460.0,0.00018183,2]
[379134499,1755154239222,-460.0,0.00018183,2]
[379134500,1755154239231,-460.0,0.00018183,2]
[379134501,1755154239241,-460.0,0.00018183,2]
[379134502,1755154239251,-460.0,0.00018183,2]
[379134503,1755154239260,-804.85,0.00018183,2]
[379134504,1755154239270,-500.0,0.00018183,2]
[379134505,1755154239279,-500.0,0.00018183,2]
[379134506,1755154239288,-500.0,0.00018183,2]
[379134507,1755154239298,-1391.19,0.00018183,2]
[379134508,1755154239308,-460.0,0.00018183,2]
[379134509,1755154239317,-460.0,0.00018183,2]
[379134510,1755154239327,-460.0,0.00018183,2]
[379134511,1755154239336,-460.0,0.00018183,2]
[379134512,1755154239346,-1092.45,0.00018183,2]
[379134513,1755154239356,-625.45,0.00018183,2]
[379134514,1755154239366,-460.0,0.00018183,2]
[379134515,1755154239375,-528.56070717,0.00018183,2]
[379134516,1755154239385,-460.0,0.00018183,2]
[379134517,1755154239394,-462.64808247,0.00018183,2]
[379134518,1755154239405,-1445.8,0.00018183,2]
[379134519,1755154239422,-1080.13,0.00018183,2]
[379134521,1755154239441,-460.0,0.00018183,2]
[379134522,1755154239450,-460.0,0.00018183,2]
[379134523,1755154239460,-740.27,0.00018183,2]
[379134524,1755154239469,-460.0,0.00018183,2]
[379134525,1755154239478,-460.0,0.00018183,2]
[379134526,1755154239488,-547.75,0.00018183,2]
[379134527,1755154239498,-1023.92,0.00018183,2]
[379134528,1755154239507,-1574.22,0.00018183,2]
[379134529,1755154239653,-460.0,0.00018183,2]
[379134530,1755154239699,-965.22,0.00018183,2]
[379134531,1755154239709,-460.0,0.00018183,2]
[379134532,1755154239719,-460.0,0.00018183,2]
[379134533,1755154239728,-460.0,0.00018183,2]
[379134534,1755154239738,-460.0,0.00018183,2]
[379134535,1755154239748,-460.0,0.00018183,2]
[379134536,1755154239763,-460.0,0.00018183,2]
[379134537,1755154239773,-460.0,0.00018183,2]
[379134538,1755154239782,-500.0,0.00018183,2]
[379134539,1755154239792,-460.0,0.00018183,2]
[379134540,1755154239803,-893.84,0.00018183,2]
[379134541,1755154239812,-460.0,0.00018183,2]
[379134542,1755154239822,-460.0,0.00018183,2]
[379134543,1755154239833,-460.0,0.00018183,2]
[379134544,1755154239843,-639.31,0.00018183,2]
[379134545,1755154239853,-460.0,0.00018183,2]
[379134546,1755154239862,-460.0,0.00018183,2]
[379134547,1755154239874,-502.03,0.00018183,2]
[379134548,1755154239883,-460.0,0.00018183,2]
[379134549,1755154239893,-460.0,0.00018183,2]
[379134550,1755154239902,-460.0,0.00018183,2]
[379134551,1755154239912,-460.0,0.00018183,2]
[379134552,1755154239922,-460.0,0.00018183,2]
[379134553,1755154239932,-460.0,0.00018183,2]
[379134554,1755154239942,-719.19,0.00018183,2]
[379134555,1755154239951,-505.71,0.00018183,2]
[379134556,1755154239961,-1423.27,0.00018183,2]
[379134557,1755154239970,-460.0,0.00018183,2]
[379134558,1755154239979,-460.0,0.00018183,2]
[379134559,1755154239989,-460.0,0.00018183,2]
[379134560,1755154239999,-214.8626994,0.00018183,2]
[379134561,1755154240008,-460.0,0.00018183,2]
[379134562,1755154240017,-14749.22687649,0.00018184,2]
[379134563,1755154240027,-460.0,0.00018184,2]
[379134564,1755154240037,-460.0,0.00018184,2]
[379134565,1755154240046,-460.0,0.00018184,2]
[379134566,1755154240056,-500.0,0.00018184,2]
[379134567,1755154240065,-377.53511321,0.00018184,2]
[379134568,1755154240075,-500.0,0.00018184,2]
[379134569,1755154240085,-500.0,0.00018184,2]
[379134570,1755154240095,-500.0,0.00018184,2]
[379134571,1755154240105,-500.0,0.00018184,2]
[379134572,1755154240114,-500.0,0.00018184,2]
[379134573,1755154240125,-500.0,0.00018184,2]
[379134574,1755154240134,-460.0,0.00018184,2]
[379134575,1755154240144,-500.0,0.00018184,2]
[379134576,1755154240154,-500.0,0.00018184,2]
[379134577,1755154240163,-500.0,0.00018184,2]
[379134578,1755154240173,-460.0,0.00018184,2]
[379134579,1755154240182,-1392.94,0.00018184,2]
[379134580,1755154240192,-460.0,0.00018184,2]
[379134581,1755154240201,-1207.07,0.00018184,2]
[379134582,1755154240210,-471.24,0.00018184,2]
[379134583,1755154240220,-460.0,0.00018184,2]
[379134584,1755154240230,-1298.58,0.00018184,2]
[379134585,1755154240239,-13508.1,0.00018184,2]
[379134586,1755154240249,-1399.64,0.00018184,2]
[379134587,1755154240258,-706.06,0.00018184,2]
[379134588,1755154240279,-460.0,0.00018184,2]
[379134589,1755154240289,-925.98,0.00018184,2]
[379134590,1755154240298,-2572.32,0.00018184,2]
[379134591,1755154240308,-426.54661616,0.00018184,2]
[379134592,1755154240319,-14824.88,0.00018184,2]
[379134593,1755154240328,-460.0,0.00018184,2]
[379134594,1755154240338,-3664.5,0.00018184,2]
[379134595,1755154240348,-10481.44,0.00018184,2]
[379134596,1755154240357,-3351.34,0.00018184,2]
[379134597,1755154240368,-460.0,0.00018184,2]
[379134598,1755154240378,-844.04,0.00018184,2]
[379134599,1755154240387,-1518.23,0.00018184,2]
[379134600,1755154240396,-460.0,0.00018184,2]
[379134601,1755154240406,-656.24,0.00018184,2]
[379134602,1755154240416,-460.0,0.00018184,2]
[379134603,1755154240425,-1157.88,0.00018184,2]
[379134604,1755154240435,-3504.77,0.00018184,2]
[379134605,1755154240444,-1653.1,0.00018184,2]
[379134606,1755154240454,-1115.64,0.00018184,2]
[379134607,1755154240463,-460.0,0.00018185,2]
[379134608,1755154240473,-460.0,0.00018185,2]
[379134609,1755154240483,-460.0,0.00018185,2]
[379134610,1755154240492,-460.0,0.00018185,2]
[379134611,1755154240501,-460.0,0.00018185,2]
[379134612,1755154240511,-460.0,0.00018185,2]
[379134613,1755154240522,-460.0,0.00018185,2]
[379134614,1755154240532,-781.01,0.00018185,2]
[379134615,1755154240542,-460.0,0.00018185,2]
[379134616,1755154240552,-460.0,0.00018185,2]
[379134617,1755154240562,-460.0,0.00018185,2]
[379134618,1755154240572,-460.0,0.00018185,2]
[379134619,1755154240583,-460.0,0.00018185,2]
[379134620,1755154240593,-460.0,0.00018185,2]
[379134621,1755154240603,-460.0,0.00018185,2]
[379134622,1755154240614,-500.13,0.00018185,2]
[379134623,1755154240625,-538.9657213,0.00018185,2]
[379134624,1755154240635,-460.0,0.00018185,2]
[379134625,1755154240644,-460.0,0.00018185,2]
[379134626,1755154240654,-460.0,0.00018185,2]
[379134627,1755154240664,-460.0,0.00018185,2]
[379134628,1755154240674,-462.04236421,0.00018185,2]
[379134629,1755154240683,-460.0,0.00018185,2]
[379134630,1755154240693,-460.0,0.00018185,2]
[379134631,1755154240703,-460.0,0.00018185,2]
[379134632,1755154240712,-460.0,0.00018185,2]
[379134633,1755154240722,-460.0,0.00018185,2]
[379134634,1755154240732,-460.0,0.00018185,2]
[379134635,1755154240741,-460.0,0.00018185,2]
[379134636,1755154240753,-500.0,0.00018185,2]
[379134637,1755154240764,-500.0,0.00018185,2]
[379134638,1755154240774,-460.0,0.00018185,2]
[379134639,1755154240783,-460.0,0.00018185,2]
[379134640,1755154240794,-460.0,0.00018185,2]
[379134641,1755154240804,-154.33722297,0.00018185,2]
[379134642,1755154240813,-460.0,0.00018185,2]
[379134643,1755154240824,-162.99640171,0.00018185,2]
[379134644,1755154240834,-393.54552633,0.00018185,2]
[379134645,1755154240844,-1033.56,0.00018185,2]
[379134646,1755154240853,-460.0,0.00018185,2]
[379134647,1755154240863,-460.0,0.00018185,2]
[379134648,1755154240873,-1711.88,0.00018185,2]
[379134649,1755154240882,-460.0,0.00018185,2]
[379134650,1755154240892,-460.0,0.00018185,2]
[379134651,1755154240901,-460.0,0.00018185,2]
[379134652,1755154240911,-460.0,0.00018185,2]
[379134653,1755154240920,-460.0,0.00018185,2]
[379134654,1755154240930,-460.0,0.00018185,2]
[379134655,1755154240939,-597.05,0.00018185,2]
[379134656,1755154240949,-460.0,0.00018185,2]
[379134657,1755154240958,-465.34076484,0.00018185,2]
[379134658,1755154240967,-460.0,0.00018185,2]
[379134659,1755154240977,-460.0,0.00018185,2]
[379134660,1755154240986,-460.0,0.00018185,2]
[379134661,1755154240996,-460.0,0.00018185,2]
[379134662,1755154241006,-460.0,0.00018185,2]
[379134663,1755154241015,-460.0,0.00018185,2]
[379134664,1755154241025,-460.0,0.00018185,2]
[379134665,1755154241035,-460.79742993,0.00018185,2]
[379134666,1755154241044,-460.0,0.00018185,2]
[379134667,1755154241054,-944.2,0.00018185,2]
[379134668,1755154241063,-517.62,0.00018185,2]
[379134669,1755154241073,-460.0,0.00018185,2]
[379134670,1755154241082,-460.0,0.00018185,2]
[379134671,1755154241092,-577.08,0.00018185,2]
[379134672,1755154241101,-460.0,0.00018185,2]
[379134673,1755154241111,-460.20282077,0.00018185,2]
[379134674,1755154241121,-460.0,0.00018185,2]
[379134675,1755154241131,-460.0,0.00018185,2]
[379134676,1755154241140,-460.0,0.00018185,2]
[379134677,1755154241150,-460.0,0.00018185,2]
[379134678,1755154241160,-460.0,0.00018185,2]
[379134679,1755154241170,-631.92,0.00018185,2]
[379134680,1755154241179,-878.28,0.00018185,2]
[379134681,1755154241189,-1654.44,0.00018185,2]
[379134682,1755154241199,-460.0,0.00018185,2]
[379134683,1755154241208,-460.0,0.00018185,2]
[379134684,1755154241218,-460.0,0.00018185,2]
[379134685,1755154241228,-460.0,0.00018185,2]
[379134686,1755154241238,-958.96,0.00018185,2]
[379134687,1755154241247,-460.0,0.00018185,2]
[379134688,1755154241256,-460.0,0.00018185,2]
[379134689,1755154241266,-460.0,0.00018185,2]
[379134690,1755154241275,-460.0,0.00018185,2]
[379134691,1755154241285,-460.0,0.00018185,2]
[379134692,1755154241294,-460.0,0.00018185,2]
[379134693,1755154241303,-460.0,0.00018185,2]
[379134694,1755154241313,-460.0,0.00018185,2]
[379134695,1755154241323,-460.0,0.00018185,2]
[379134696,1755154241332,-462.29848562,0.00018185,2]
[379134697,1755154241341,-460.0,0.00018185,2]
[379134698,1755154241351,-460.0,0.00018185,2]
[379134699,1755154241360,-460.0,0.00018185,2]
[379134700,1755154241370,-460.0,0.00018185,2]
[379134701,1755154241380,-460.0,0.00018185,2]
[379134702,1755154241390,-460.0,0.00018185,2]
[379134703,1755154241399,-460.0,0.00018185,2]
[379134704,1755154241409,-460.0,0.00018185,2]
[379134705,1755154241418,-460.0,0.00018185,2]
[379134706,1755154241428,-703.46,0.00018185,2]
[379134707,1755154241438,-460.0,0.00018185,2]
[379134708,1755154241448,-460.0,0.00018185,2]
[379134709,1755154241457,-523.09,0.00018185,2]
[379134710,1755154241467,-512.70262901,0.00018185,2]
[379134711,1755154241476,-460.0,0.00018185,2]
[379134712,1755154241486,-460.0,0.00018185,2]
[379134713,1755154241496,-460.0,0.00018185,2]
[379134714,1755154241505,-460.0,0.00018185,2]
[379134715,1755154241514,-593.87100228,0.00018185,2]
[379134716,1755154241523,-460.0,0.00018185,2]
[379134717,1755154241533,-460.0,0.00018185,2]
[379134718,1755154241544,-460.0,0.00018185,2]
[379134719,1755154241553,-460.0,0.00018185,2]
[379134720,1755154241562,-460.0,0.00018185,2]
[379134721,1755154241572,-460.0,0.00018185,2]
[379134722,1755154241582,-460.0,0.00018185,2]
[379134723,1755154241592,-460.0,0.00018185,2]
[379134724,1755154241601,-583.62540956,0.00018185,2]
[379134725,1755154241610,-460.0,0.00018185,2]
[379134726,1755154241619,-460.0,0.00018185,2]
[379134727,1755154241629,-200.0,0.00018185,10]
[379134728,1755154241639,-200.0,0.00018185,10]
[379134729,1755154241649,-200.0,0.00018185,10]
[379134730,1755154241658,-168.788403,0.00018185,10]
[379134731,1755154241668,-460.0,0.00018185,2]
[379134732,1755154241677,-336.57519746,0.00018185,2]
[379134733,1755154241687,-460.0,0.00018185,2]
[379134734,1755154241696,-903.92,0.00018185,2]
[379134735,1755154241706,-1205.27,0.00018185,2]
[379134736,1755154241715,-460.0,0.00018185,2]
[379134737,1755154241724,-837.1,0.00018185,2]
[379134738,1755154241734,-460.0,0.00018185,2]
[379134739,1755154241743,-500.0,0.00018185,2]
[379134740,1755154241758,-460.0,0.00018185,2]
[379134741,1755154241767,-460.0,0.00018185,2]
[379134742,1755154241776,-460.0,0.00018185,2]
[379134743,1755154241786,-460.11345523,0.00018185,2]
[379134744,1755154241798,-470.55648676,0.00018185,2]
[379134745,1755154241808,-894.94,0.00018185,2]
[379134746,1755154241819,-460.0,0.00018185,2]
[379134747,1755154241828,-460.0,0.00018185,2]
[379134748,1755154241842,-460.0,0.00018185,2]
[379134749,1755154241854,-460.0,0.00018185,2]
[379134750,1755154241864,-460.0,0.00018185,2]
[379134751,1755154241875,-460.0,0.00018185,2]
[379134752,1755154241885,-2074.91,0.00018185,2]
[379134753,1755154241895,-460.0,0.00018185,2]
[379134754,1755154241905,-460.0,0.00018185,2]
[379134755,1755154241914,-1474.8,0.00018185,2]
[379134756,1755154241924,-460.0,0.00018185,2]
[379134757,1755154241934,-150.67266954,0.00018185,2]
[379134758,1755154241943,-460.0,0.00018185,2]
[379134759,1755154241952,-1404.22,0.00018185,2]
[379134760,1755154241962,-460.0,0.00018185,2]
[379134761,1755154241972,-460.0,0.00018185,2]
[379134762,1755154241981,-460.0,0.00018185,2]
[379134763,1755154241991,-460.0,0.00018185,2]
[379134764,1755154242000,-460.0,0.00018185,2]
[379134765,1755154242010,-460.0,0.00018185,2]
[379134766,1755154242020,-460.0,0.00018185,2]
[379134767,1755154242030,-460.0,0.00018185,2]
[379134768,1755154242039,-460.0,0.00018185,2]
[379134769,1755154242048,-460.0,0.00018185,2]
[379134770,1755154242057,-550.1,0.00018185,2]
[379134771,1755154242066,-460.0,0.00018185,2]
[379134772,1755154242076,-460.0,0.00018185,2]
[379134773,1755154242085,-500.0,0.00018185,2]
[379134774,1755154242095,-500.0,0.00018185,2]
[379134775,1755154242104,-460.0,0.00018185,2]
[379134776,1755154242114,-460.0,0.00018185,2]
[379134777,1755154242124,-460.0,0.00018185,2]
[379134778,1755154242134,-460.0,0.00018185,2]
[379134779,1755154242143,-460.0,0.00018185,2]
[379134780,1755154242153,-464.4,0.00018185,2]
[379134781,1755154242163,-460.0,0.00018185,2]
[379134782,1755154242173,-460.0,0.00018185,2]
[379134783,1755154242183,-1521.54,0.00018185,2]
[379134784,1755154242192,-460.0,0.00018185,2]
[379134785,1755154242202,-460.0,0.00018185,2]
[379134786,1755154242211,-460.0,0.00018185,2]
[379134787,1755154242221,-460.0,0.00018185,2]
[379134788,1755154242230,-460.0,0.00018185,2]
[379134789,1755154242240,-1020.57,0.00018185,2]
[379134790,1755154242249,-460.0,0.00018185,2]
[379134791,1755154242259,-460.0,0.00018185,2]
[379134792,1755154242269,-559.21093346,0.00018185,2]
[379134793,1755154242279,-460.50417461,0.00018185,2]
[379134795,1755154242288,-601.99,0.00018185,2]
[379134796,1755154242298,-460.0,0.00018185,2]
[379134797,1755154242307,-460.0,0.00018185,2]
[379134798,1755154242317,-460.0,0.00018185,2]
[379134799,1755154242327,-460.0,0.00018185,2]
[379134800,1755154242336,-460.0,0.00018185,2]
[379134801,1755154242347,-464.26,0.00018185,2]
[379134802,1755154242356,-1227.26,0.00018185,2]
[379134804,1755154242366,-460.0,0.00018185,2]
[379134805,1755154242375,-460.0,0.00018185,2]
[379134806,1755154242385,-460.0,0.00018185,2]
[379134807,1755154242395,-500.0,0.00018186,2]
[379134808,1755154242405,-500.0,0.00018186,2]
[379134809,1755154242416,-500.0,0.00018186,2]
[379134810,1755154242426,-500.0,0.00018186,2]
[379134811,1755154242435,-240.27927748,0.00018186,2]
[379134812,1755154242444,-500.0,0.00018186,2]
[379134813,1755154242454,-500.0,0.00018186,2]
[379134815,1755154242463,-460.0,0.00018187,2]
[379134817,1755154242473,-319.10817248,0.00018187,2]
[379134818,1755154242482,-460.0,0.00018187,2]
[379134819,1755154242492,-500.0,0.00018187,2]
[379134820,1755154242501,-460.63038383,0.00018187,2]
[379134821,1755154242511,-460.0,0.00018187,2]
[379134822,1755154242520,-460.0,0.00018187,2]
[379134823,1755154242530,-368.8016624,0.00018187,2]
[379134824,1755154242540,-460.0,0.00018187,2]
[379134825,1755154242549,-460.0,0.00018187,2]
[379134826,1755154242558,-460.0,0.00018187,2]
[379134827,1755154242568,-460.0,0.00018187,2]
[379134828,1755154242577,-460.0,0.00018187,2]
[379134829,1755154242587,-230.46860468,0.00018187,2]
[379134830,1755154242596,-460.0,0.00018187,2]
[379134831,1755154242606,-460.0,0.00018187,2]
[379134832,1755154242615,-460.0,0.00018187,2]
[379134833,1755154242625,-460.0,0.00018187,2]
[379134834,1755154242635,-460.0,0.00018187,2]
[379134835,1755154242644,-460.0,0.00018187,2]
[379134836,1755154242653,-400.0,0.00018187,2]
[379134837,1755154242663,-460.0,0.00018187,2]
[379134838,1755154242672,-460.0,0.00018187,2]
[379134839,1755154242682,-830.51,0.00018187,2]
[379134840,1755154242691,-460.0,0.00018187,2]
[379134841,1755154242700,-460.0,0.00018187,2]
[379134842,1755154242710,-710.29,0.00018187,2]
[379134843,1755154242719,-460.0,0.00018187,2]
[379134844,1755154242729,-519.2,0.00018187,2]
[379134845,1755154242739,-910.1,0.00018187,2]
[379134846,1755154242750,-460.0,0.00018187,2]
[379134847,1755154242767,-460.0,0.00018187,2]
[379134848,1755154242776,-693.54,0.00018187,2]
[379134849,1755154242786,-460.0,0.00018187,2]
[379134850,1755154242796,-460.0,0.00018187,2]
[379134851,1755154242807,-460.0,0.00018187,2]
[379134852,1755154242817,-460.0,0.00018187,2]
[379134853,1755154242827,-460.0,0.00018187,2]
[379134854,1755154242845,-460.0,0.00018187,2]
[379134855,1755154242856,-460.0,0.00018187,2]
[379134856,1755154242866,-460.0,0.00018187,2]
[379134857,1755154242877,-1776.35,0.00018187,2]
[379134858,1755154242887,-696.41,0.00018187,2]